Workbook

Sheet Home

Sheet Article
L4: 1 | M4: 2 | N4: 3 | O4: 4 | P4: 5 | Q4: 6 | R4: 7 | S4: 8 | T4: 9 | U4: 10
B5: Nr Article | C5: Nom | D5: Description | E5: Prix unité | F5: Stock | G5: Valeur Stock | H5: stock min. | I5: Flag | J5: Statuts | K5: Vide | L5: 1 | M5: 2 | N5: 22 | O5: 4 | P5: 5 | Q5: 6 | R5: 7 | S5: 8 | T5: 9 | U5: 10 | V5: >10
B6: ART-00001 | C6: Eau Crystal | D6: RAS | E6: 250 | F6: =SUMIFS(Tableau5[Nombre],Tableau5[Nr Article],Tableau3[[#This Row],[Nr Article]],Tableau5[Type],"Entrée")-SUMIFS(Tableau5[Nombre],Tableau5[Nr Article],Tableau3[[#This Row],[Nr Article]],Tableau5[Type],"Sortie") -> 15 | G6: =E6*F6 -> 3750 | H6: 5 | I6: =IF(F6<H6,1,"") ->  | J6: Active
B7: ART-00002 | C7: Jus Pulp Orange | D7: RAS | E7: 500 | F7: =SUMIFS(Tableau5[Nombre],Tableau5[Nr Article],Tableau3[[#This Row],[Nr Article]],Tableau5[Type],"Entrée")-SUMIFS(Tableau5[Nombre],Tableau5[Nr Article],Tableau3[[#This Row],[Nr Article]],Tableau5[Type],"Sortie") -> 0 | G7: =E7*F7 -> 0 | H7: 5 | I7: =IF(F7<H7,1,"") -> 1 | J7: Active

Sheet Order
B5: Nr commande | C5: Date | D5: Nr article | E5: nom | F5: nombre | G5: prix | H5: prix total | I5: fournisseur | J5: Contrôle | K5: Chek
B6: ORD-00001 | C6: 2022-07-20T16:06:40 | D6: ART-00001 | E6: Eau Crystal | F6: 20 | G6: 250 | H6: =F6*G6 -> 5000 | I6: Joachim1 | J6: =IFERROR(INDEX(Tableau5[Nombre],MATCH(1,(Tableau2[[#This Row],[Nr commande]]=Tableau5[Nr Bon de commande])*(Tableau2[[#This Row],[Nr article]]=Tableau5[Nr Article]),0)),"") -> 20 | K6: =IF(Tableau2[[#This Row],[Contrôle]]=Tableau2[[#This Row],[nombre]],"Close","Open") -> Close
B7: ORD-00001 | C7: 2022-07-20T16:06:40 | D7: ART-00002 | E7: Jus Pulp Orange | F7: 24 | G7: 500 | H7: =F7*G7 -> 12000 | I7: Joachim1 | J7: =IFERROR(INDEX(Tableau5[Nombre],MATCH(1,(Tableau2[[#This Row],[Nr commande]]=Tableau5[Nr Bon de commande])*(Tableau2[[#This Row],[Nr article]]=Tableau5[Nr Article]),0)),"") -> 10 | K7: =IF(Tableau2[[#This Row],[Contrôle]]=Tableau2[[#This Row],[nombre]],"Close","Open") -> Open

Sheet Po
E6: BON DE COMMANDE
B11: Com Nr. | C11: ORD-00001 | F11: Date: | G11: =IFERROR(INDEX(Tableau2[Date],MATCH(Po!C11,Tableau2[Nr commande],0)),"") -> 2022-07-20T16:06:40
B12: Le numéro suivant doit apparaitre sur toute la
B13: correspondance annexe, les papiers de livraison et les factures
B15: Shopping adress | F15: Fournisseur:
B16: =Config!C27 -> PHONE AFFAIRES | F16: =IFERROR(INDEX(Tableau2[fournisseur],MATCH(Po!C11,Tableau2[Nr commande],0)),"") -> Joachim1
B17: =Config!C28 -> 17, avenue des trois martyrs | F17: =IFERROR(INDEX(Tableau15[Adress],MATCH(Po!$F$16,Tableau1[Nom],0)),"") -> adress1
B18: =CONCATENATE(Config!C31,"-",Config!C29,",",Config!C30) -> Congo-122,Brazzaville | F18: =IFERROR(INDEX(Tableau1[Group],MATCH(Po!$F$16,Tableau1[Nom],0)),"") -> Fr-111,Paris
B19: =Config!C32 -> 65686565 | F19: =IFERROR(INDEX(Tableau1[Téléphone],MATCH(Po!$F$16,Tableau1[Nom],0)),"") -> 111111
B20: =Config!C33 -> phone_affaires@gmail.com | F20: =IFERROR(INDEX(Tableau1[Mail],MATCH(Po!$F$16,Tableau1[Nom],0)),"") -> joachim@gmail.com
B22: Nr | C22: Nr Article | D22: Nom | E22: Nombre | F22: PU | G22: Total
B23: =IF(C23<>"",ROW()-22,"") -> 1 | C23: =INDEX(Tableau2[Nr article],SMALL(IF(Tableau2[Nr commande]=Po!$C$11,ROW(Tableau2[Nr article])-5),ROW()-22)) -> ART-00001 | D23: =INDEX(Tableau2[nom],SMALL(IF(Tableau2[Nr commande]=Po!$C$11,ROW(Tableau2[nom])-5),ROW()-22)) -> Eau Crystal | E23: =INDEX(Tableau2[nombre],SMALL(IF(Tableau2[Nr commande]=Po!$C$11,ROW(Tableau2[nombre])-5),ROW()-22)) -> 20 | F23: =INDEX(Tableau2[prix],SMALL(IF(Tableau2[Nr commande]=Po!$C$11,ROW(Tableau2[prix])-5),ROW()-22)) -> 250 | G23: =INDEX(Tableau2[prix total],SMALL(IF(Tableau2[Nr commande]=Po!$C$11,ROW(Tableau2[prix total])-5),ROW()-22)) -> 5000
B24: =IF(C24<>"",ROW()-22,"") -> 2 | C24: =IFERROR(INDEX(Tableau2[Nr article],SMALL(IF(Tableau2[Nr commande]=Po!$C$11,ROW(Tableau2[Nr article])-5),ROW()-22)),"") -> ART-00002 | D24: =IFERROR(INDEX(Tableau2[nom],SMALL(IF(Tableau2[Nr commande]=Po!$C$11,ROW(Tableau2[nom])-5),ROW()-22)),"") -> Jus Pulp Orange | E24: =IFERROR(INDEX(Tableau2[nombre],SMALL(IF(Tableau2[Nr commande]=Po!$C$11,ROW(Tableau2[nombre])-5),ROW()-22)),"") -> 24 | F24: =IFERROR(INDEX(Tableau2[prix],SMALL(IF(Tableau2[Nr commande]=Po!$C$11,ROW(Tableau2[prix])-5),ROW()-22)),"") ->  | G24: =IFERROR(INDEX(Tableau2[prix total],SMALL(IF(Tableau2[Nr commande]=Po!$C$11,ROW(Tableau2[prix total])-5),ROW()-22)),"") -> 12000
B25: =IF(C25<>"",ROW()-22,"") -> 
B44: Test
F45: Total: | G45: =SUM(G23:G42) -> 17000
F46: TVA 21% | G46: =G45*0.21 -> 3570
F47: Total: TTC : | G47: =G45+G46 -> 20570

Sheet Booking
B5: Type | C5: Nr Facture | D5: Nr Bon de commande | E5: Fournisseur | F5: Client | G5: Nr Article | H5: Nombre | I5: Banking
B6: Entrée | C6: FACT-00002 | D6: ORD-00001 | F6: Joachim1 | G6: ART-00001 | H6: 20 | I6: =IF(Tableau5[Type]="Sortie",COUNTIFS(Tableau5[Type],"Sortie",Tableau5[Nombre],">"&Tableau5[[#This Row],[Nombre]])+1,"") -> 
B7: Entrée | C7: FACT-00002 | D7: ORD-00001 | F7: Joachim1 | G7: ART-00002 | H7: 10 | I7: =IF(Tableau5[Type]="Sortie",COUNTIFS(Tableau5[Type],"Sortie",Tableau5[Nombre],">"&Tableau5[[#This Row],[Nombre]])+1,"") -> 
B8: Sortie | C8: FACT-00004 | D8: ORD-00001 | F8: Belle1 | G8: ART-00001 | H8: 5 | I8: =IF(Tableau5[Type]="Sortie",COUNTIFS(Tableau5[Type],"Sortie",Tableau5[Nombre],">"&Tableau5[[#This Row],[Nombre]])+1,"") -> 2
B9: Sortie | C9: FACT-00004 | D9: ORD-00001 | F9: Belle1 | G9: ART-00002 | H9: 10 | I9: =IF(Tableau5[Type]="Sortie",COUNTIFS(Tableau5[Type],"Sortie",Tableau5[Nombre],">"&Tableau5[[#This Row],[Nombre]])+1,"") -> 1

Sheet Supplier
B5: Nom | C5: Adress | D5: Cp | E5: Ville | F5: Pays | G5: Téléphone | H5: Mail | I5: Group
B6: Joachim1 | C6: adress1 | D6: 111 | E6: Paris | F6: France | G6: 111111 | H6: joachim@gmail.com | I6: =CONCATENATE(LEFT(F6,2),"-",D6,",",E6) -> Fr-111,Paris
B7: Joachim2 | C7: adress2 | D7: 112 | E7: Paris | F7: France | G7: 111112 | H7: joachim@gmail.com | I7: =CONCATENATE(LEFT(F7,2),"-",D7,",",E7) -> Fr-112,Paris
B8: Joachim3 | C8: adress3 | D8: 113 | E8: Paris | F8: France | G8: 111113 | H8: joachim@gmail.com | I8: Fr-113,Paris
B9: Joachim4 | C9: adress4 | D9: 114 | E9: Paris | F9: France | G9: 111114 | H9: joachim@gmail.com | I9: Fr-114,Paris
B10: Joachim5 | C10: adress5 | D10: 115 | E10: Paris | F10: France | G10: 111115 | H10: joachim@gmail.com | I10: Fr-115,Paris
B11: Joachim6 | C11: adress6 | D11: 116 | E11: Paris | F11: France | G11: 111116 | H11: joachim@gmail.com | I11: Fr-116,Paris
B12: Joachim7 | C12: adress7 | D12: 117 | E12: Paris | F12: France | G12: 111117 | H12: joachim@gmail.com | I12: Fr-117,Paris
B13: Joachim8 | C13: adress8 | D13: 118 | E13: Paris | F13: France | G13: 111118 | H13: joachim@gmail.com | I13: Fr-118,Paris
B14: Joachim9 | C14: adress9 | D14: 119 | E14: Paris | F14: France | G14: 111119 | H14: joachim@gmail.com | I14: Fr-119,Paris
B15: Joachim10 | C15: adress10 | D15: 120 | E15: Paris | F15: France | G15: 111120 | H15: joachim@gmail.com | I15: Fr-120,Paris
B16: Joachim11 | C16: adress11 | D16: 121 | E16: Paris | F16: France | G16: 111121 | H16: joachim@gmail.com | I16: Fr-121,Paris
B17: Joachim12 | C17: adress12 | D17: 122 | E17: Paris | F17: France | G17: 111122 | H17: joachim@gmail.com | I17: Fr-122,Paris
B18: Joachim13 | C18: adress13 | D18: 123 | E18: Paris | F18: France | G18: 111123 | H18: joachim@gmail.com | I18: Fr-123,Paris
B19: Joachim14 | C19: adress14 | D19: 124 | E19: Paris | F19: France | G19: 111124 | H19: joachim@gmail.com | I19: Fr-124,Paris

Sheet Customer
B5: Nom | C5: Adress | D5: Cp | E5: Ville | F5: Pays | G5: Téléphone | H5: Mail | I5: Group
B6: Belle1 | C6: adress1 | D6: 1000 | E6: Paris | F6: Belgique | G6: 444555 | H6: joachim@gmail.com | I6: =CONCATENATE(LEFT(F6,2),"-",D6,",",E6) -> Be-1000,Paris
B7: Belle2 | C7: adress2 | D7: 1001 | E7: Paris | F7: Belgique | G7: 444556 | H7: joachim@gmail.com | I7: =CONCATENATE(LEFT(F7,2),"-",D7,",",E7) -> Be-1001,Paris
B8: Belle3 | C8: adress3 | D8: 1002 | E8: Paris | F8: Belgique | G8: 444557 | H8: joachim@gmail.com | I8: Be-1002,Paris
B9: Belle4 | C9: adress4 | D9: 1003 | E9: Paris | F9: Belgique | G9: 444558 | H9: joachim@gmail.com | I9: Be-1003,Paris
B10: Belle5 | C10: adress5 | D10: 1004 | E10: Paris | F10: Belgique | G10: 444559 | H10: joachim@gmail.com | I10: Be-1004,Paris
B11: Belle6 | C11: adress6 | D11: 1005 | E11: Paris | F11: Belgique | G11: 444560 | H11: joachim@gmail.com | I11: Be-1005,Paris
B12: Belle7 | C12: adress7 | D12: 1006 | E12: Paris | F12: Belgique | G12: 444561 | H12: joachim@gmail.com | I12: Be-1006,Paris
B13: Belle8 | C13: adress8 | D13: 1007 | E13: Paris | F13: Belgique | G13: 444562 | H13: joachim@gmail.com | I13: Be-1007,Paris
B14: Belle9 | C14: adress9 | D14: 1008 | E14: Paris | F14: Belgique | G14: 444563 | H14: joachim@gmail.com | I14: Be-1008,Paris
B15: Belle10 | C15: adress10 | D15: 1009 | E15: Paris | F15: Belgique | G15: 444564 | H15: joachim@gmail.com | I15: Be-1009,Paris
B16: Belle11 | C16: adress11 | D16: 1010 | E16: Paris | F16: Belgique | G16: 444565 | H16: joachim@gmail.com | I16: Be-1010,Paris
B17: Belle12 | C17: adress12 | D17: 1011 | E17: Paris | F17: Belgique | G17: 444566 | H17: joachim@gmail.com | I17: Be-1011,Paris
B18: Belle13 | C18: adress13 | D18: 1012 | E18: Paris | F18: Belgique | G18: 444567 | H18: joachim@gmail.com | I18: Be-1012,Paris
B19: Belle14 | C19: adress14 | D19: 1013 | E19: Paris | F19: Belgique | G19: 444568 | H19: joachim@gmail.com | I19: Be-1013,Paris

Sheet Config
B6: Items Navig | I6: Nav Color
B8: Page1 | C8: Home | I8: Background
B9: Page2 | C9: Articles
B10: Page3 | C10: Commandes | I10: Page
B11: Page4 | C11: Bon
B12: Page5 | C12: Booking
B13: Page6 | C13: Fournisseur
B14: Page7 | C14: Client
B15: Page8 | C15: Config
B17: Suffixe
B19: Article | C19: ART- | D19: 3 | E19: =C19&TEXT(D19,"00000") -> ART-00003
B20: Order | C20: ORD- | D20: 2 | E20: =C20&TEXT(D20,"00000") -> ORD-00002
B21: Booking | C21: BOO- | D21: 1 | E21: =C21&TEXT(D21,"00000") -> BOO-00001
B25: Bon de commande
B27: Entreprise | C27: PHONE AFFAIRES
B28: Adresse | C28: 17, avenue des trois martyrs
B29: CodePostal | C29: 122
B30: Ville | C30: Brazzaville
B31: Pays | C31: Congo
B32: Tél.: | C32: 65686565
B33: Email.: | C33: phone_affaires@gmail.com
B35: Condition | C35: 1.Veuillez envoyer deux copies de votre facture 2. Entrez cette commande conormément aux tarifs, aux conditions, à la méthode de livraison et aux spécifications repertoriées ci-dessus. 3. Veuillez nous informer immédiatement si vous n'êtes pas en mesure de d'expédier la commande telle que spécifiée.
B45: Tableau de bord
B47: Widget 1 | C47: Valeur de stock | E47: =SUM(Tableau3[Valeur Stock]) -> 3750
B48: Widget 2 | C48: Articles en commande | E48: =COUNTIF(Tableau2[Chek],"Open") -> 1
B49: Widget 3 | C49: Articles critiques | E49: =COUNTIF(Tableau3[Flag],1) -> 1
B50: Widget 4 | C50: Nombre d'articles en stock | E50: =COUNTIF(Tableau3[Statuts],"Active") -> 2
B51: Widget 5 | C51: Volume du stock | E51: =SUM(Tableau3[Stock]) -> 15
B52: Widget 6 | C52: Top 3 articles vendus | E52: =IFERROR(INDEX(Tableau5[Nr Article],MATCH(1,Tableau5[Banking],0)),"") -> ART-00002 | F52: =IFERROR(INDEX(Tableau5[Nr Article],MATCH(2,Tableau5[Banking],0)),"") -> ART-00001

Sheet Inventaires
A2: SUIVI DES INVENTAIRES DU STOCK | I2: SUIVI DES DÉCAISSEMENTS
A4: Période du : | B4: 2022-07-20 | C4: au | D4: 2022-07-31
A6: Reste après décaissement : | C6: =G9-M7 -> 17200 | E6: Manquant | F6: =G9-C7 -> -18800
A7: Total réel encaissé: | C7: 50000 | E7: Excédent | F7: =C7-G9 -> 18800 | I7: Total général des décaissements : | M7: =SUM(O12:O65538) -> 14000
F9: TOTAL | G9: =SUM(G13:G65541) -> 31200
B11: Début | D11: Fin | F11: Cacul | I11: Date | J11: Montant | K11: Motif | N11: Num. Cmde | O11: Total
B12: Stock Init. | C12: Date Init. | D12: Reste | E12: Date Contrôle | F12: Vendu | G12: Sous-Total | I12: 2022-08-22 | J12: 5000 | K12: Motif1 | O12: =SUM(J12:M12) -> 5000
A13: Article 2 | B13: 20 | C13: 2022-07-20 | D13: 5 | E13: 2022-07-22 | F13: =B13-D13 -> 15 | G13: =F13*600 -> 9000 | I13: 2022-08-23 | J13: 9000 | K13: Motif2 | O13: =SUM(J13:M13) -> 9000
A14: Article 2 | B14: 40 | C14: 2022-07-20 | D14: 3 | E14: 2022-07-22 | F14: =B14-D14 -> 37 | G14: =F14*600 -> 22200 | O14: =SUM(J14:M14) -> 0
A15: Article 2 | G15: =F15*600 -> 0 | O15: =SUM(J15:M15) -> 0
A16: Article 2 | G16: 0 | O16: =SUM(J16:M16) -> 0
